Cogmind - Beta 15 @@@ ROGUE MODE // 2025.06.11 @ 03:29:54 Player: puppuppit Result: Destroyed by Lightning with EMDS Performance ------------- Evolutions (5) 2500 Regions Visited (10) 2000 Robots Destroyed (191) 955 Value Destroyed (6576) 6576 Prototype IDs (18) 360 Alien Tech Used (0) 0 Bonus (7952) 7952 TOTAL SCORE: 20343 Bonus ------- Triggered High Security 500 High Alert Combat Kills 2108 Follower Combat Kills 3118 Network Hubs Disabled 400 Registered with UFD 300 Met Optimus in HQ 500 Built Enhanced Grunts 300 A7 Reached Mainframe 300 Met R17 at Cetus 500 Friendly Fire -74 Cogmind --------- Core Integrity 0/1000 Matter 242/300 Energy 53/100 System Corruption 12% Temperature Cool (0) Movement Hovering (70) Location -5/Hub_04(d) Parts ------- > --- POWER (1) -------- (None) > --- PROPULSION (5) --- Gyrokinetic Inverter > --- UTILITY (7) ------ 0b10 Decoder Chip [Looter] Improved Hacking Suite Improved System Shield Advanced System Shield > --- WEAPON (4) ------- (None) > --- INVENTORY (5) ---- Combat Gravmag System Combat Gravmag System Railgun Mass Driver Enhanced Gauss Cannon Peak State ------------ > --- POWER ------------ Light Angular Momentum Engine > --- PROPULSION ------- Improved Medium Treads Improved Medium Treads Improved Medium Treads Improved Medium Treads > --- UTILITY ---------- Advanced Heat Sink Large Storage Unit Enhanced Optical Array 0b10 Decoder Chip [Looter] Recoil Stabilizer Centrium Medium Armor Plating > --- WEAPON ----------- Gauss Rifle Gauss Rifle Light Antimatter Cannon Hellfire Missile Launcher > --- INVENTORY -------- Light Angular Momentum Engine Fusion Reactor Improved Medium Treads Improved Medium Treads High-capacity Matter Pod Spectral Analyzer Weapon Cycler Gauss Rifle Light Antimatter Cannon Light Antimatter Cannon Light Antimatter Cannon Hellfire Missile Launcher Large Botcube PL-3XN's Ring of Power [Rating: 88] Favorites ----------- Power Neutrino Core Engine Light Angular Momentum Engine Power Core Neutrino Core Reactor Fusion Reactor Propulsion Light Treads Treads Light Treads Leg Improved VSS Leg Wheel Wheel Hover Unit Gyrokinetic Inverter Flight Unit Nuclear Pulse Thruster Utility Large Storage Unit Device Improved Heat Sink Storage Large Storage Unit Processor 0b10 Decoder Chip [Looter] Hackware Hacking Suite Protection Makeshift Light Armor Plating Weapon Shotgun Energy Gun Medium Laser Ballistic Gun Shotgun Ballistic Cannon Enhanced Gauss Cannon Launcher Rocket Launcher Build | -11 -10 -10 -9 -9 -6 -5 -5 -5 -5 -5 ------- Run | Yrd Mat Sub Rec Scr Fac Fac Ext Cet Arc Hub Slots Evolved 10 | . . . . . 8 2 . . . . Power . | . . . . . . . . . . . Propulsion 3 | . . . . . 2 1 . . . . Utility 5 | . . . . . 4 1 . . . . Weapon 2 | . . . . . 2 . . . . . Parts Attached 123 | 7 10 7 1 5 54 21 9 . 1 8 Power 13 | 1 1 1 . . 4 4 1 . . 1 Engine 7 | 1 . 1 . . 2 2 . . . 1 Core 5 | . 1 . . . 1 2 1 . . . Reactor 1 | . . . . . 1 . . . . . Propulsion 31 | 2 2 . . 3 13 6 2 . 1 2 Treads 13 | 2 2 . . 1 8 . . . . . Leg 2 | . . . . . 2 . . . . . Wheel 2 | . . . . . 2 . . . . . Hover 13 | . . . . 2 . 6 2 . 1 2 Flight 1 | . . . . . 1 . . . . . Utility 41 | 2 4 1 . 2 17 6 5 . . 4 Device 17 | 1 1 . . . 9 4 2 . . . Storage 3 | 1 1 . . 1 . . . . . . Processor 9 | . 1 . . 1 5 . 2 . . . Hackware 9 | . 1 . . . 1 2 1 . . 4 Protection 3 | . . 1 . . 2 . . . . . Artifact . | . . . . . . . . . . . Weapon 38 | 2 3 5 1 . 20 5 1 . . 1 Energy Gun 2 | 1 . . . . . 1 . . . . Energy Cannon . | . . . . . . . . . . . Ballistic Gun 20 | 1 3 2 . . 13 1 . . . . Ballistic Cannon 10 | . . 1 1 . 3 3 1 . . 1 Launcher 6 | . . 2 . . 4 . . . . . Special Weapon . | . . . . . . . . . . . Impact Weapon . | . . . . . . . . . . . Slashing Weapon . | . . . . . . . . . . . Piercing Weapon . | . . . . . . . . . . . Special Melee Weapon . | . . . . . . . . . . . Unidentified Prototypes 8 | . . . . . 7 . 1 . . . Corrupted Parts 3 | . . . . . 3 . . . . . System Corruption 11 | . . . . . 11 . . . . . Parts Lost 36 | . 1 1 3 . 20 2 . . . 9 Power 5 | . . . . . 2 1 . . . 2 Propulsion 14 | . . . 2 . 8 . . . . 4 Utility 6 | . 1 . . . 3 . . . . 2 Weapon 11 | . . 1 1 . 7 1 . . . 1 Highest Loss Streak 9 | . 1 1 1 . 9 2 . . . 6 To Critical Strikes . | . . . . . . . . . . . Average Backups 11 | . 8 14 12 9 10 9 12 14 14 13 Power . | . . . . . 1 . . 1 . . Propulsion 3 | . 3 6 5 1 1 2 3 4 3 3 Utility 2 | . . 1 2 3 2 3 3 3 3 4 Weapon 5 | . 4 6 5 4 5 3 3 5 5 5 Tool/Special . | . . . . . . . . . . . Unused Backups 91 | . 2 1 1 17 22 1 20 4 3 20 Power 14 | . . . . 2 3 . 6 1 1 1 Propulsion 20 | . . . . 4 4 . 4 . . 8 Utility 33 | . 1 . . 7 9 1 7 . 1 7 Weapon 24 | . 1 1 1 4 6 . 3 3 1 4 Tool/Special . | . . . . . . . . . . . Average Slot Usage (%) 90 | . 98 100 100 85 92 68 87 88 88 77 Engine 4 | . 7 6 14 . 4 3 . . . . Core 2 | . 6 7 . . . 1 5 5 5 4 Treads 18 | . 27 28 28 24 18 1 . . . . Hover 6 | . . . . 3 1 13 29 29 29 26 Device 3 | . 8 . . . 8 7 4 5 5 1 Storage 10 | . 14 14 14 14 6 5 5 5 5 4 Processor 7 | . 2 . . 1 16 21 14 23 23 7 Hackware 3 | . 2 1 . . 3 1 13 5 5 24 Protection 5 | . . 12 14 12 1 . . . . . Ballistic Gun 15 | . 24 13 12 24 22 1 . . . . Ballistic Cannon 6 | . . 13 15 3 1 4 10 11 11 4 Peak Build Rating 88 | 9 15 16 15 16 88 86 86 86 86 87 Average Rating 38 | 5 11 15 14 13 63 61 82 85 86 76 On Entrance 40 | . 9 15 15 14 14 39 81 85 86 86 Naked Turns . | . . . . . . . . . . . Heaviest Build 60 | 15 32 40 35 35 60 54 54 54 54 54 Greatest Support 120 | 40 40 40 40 43 120 54 54 54 54 55 Greatest Overweight (x) 7 | . . . . 4 7 1 . . . 2 Average Overweight (x) . | . . . . . . . . . . . Largest Inventory Capacity 15 | 8 15 15 15 15 15 15 15 15 15 15 Average Capacity 14 | 7 12 15 15 15 15 15 15 15 15 14 Most Carried 15 | . 15 15 15 15 15 15 15 15 15 15 Average Carried 12 | . 9 14 13 11 12 13 14 14 14 14 Final Capacity 15 | 8 15 15 15 15 15 15 15 15 15 15 Final Carried 15 | . 15 15 12 10 15 15 15 15 15 15 Class Distribution -------------------- 55% | Mutant 11% | Hacker-Mutant 10% | Gunner 7% | Commander-Mutant 4% | Tank 3% | Scavenger-Mutant Dominant Class ---------------- Mutant | -10/Materials Mutant | -10/Subcaves Mutant | -9/Recycling Mutant | -9/Scraptown Gunner | -6/Factory Scavenger-Mutant | -5/Factory Hacker-Mutant | -5/Extension Commander-Mutant | -5/Cetus Commander-Mutant | -5/Archives Hacker-Mutant | -5/Hub_04(d) Resources | -11 -10 -10 -9 -9 -6 -5 -5 -5 -5 -5 ----------- Run | Yrd Mat Sub Rec Scr Fac Fac Ext Cet Arc Hub Matter Collected 7588 | 312 831 658 553 70 2943 430 1166 121 258 246 Remotely . | . . . . . . . . . . . Salvage Created 7458 | 175 833 433 354 . 3928 373 1089 . 107 166 Parts 359 | 13 63 43 12 . 162 21 32 . 8 5 Haulers Intercepted 1 | . 1 . . . . . . . . . Recyclers Shooed 20 | . 2 . 3 . 7 3 5 . . . Parts Field Recycled . | . . . . . . . . . . . Retrieved Matter . | . . . . . . . . . . . Parts Self-Destructed 16 | . . 16 . . . . . . . . Prevented . | . . . . . . . . . . . Kills | -11 -10 -10 -9 -9 -6 -5 -5 -5 -5 -5 ------- Run | Yrd Mat Sub Rec Scr Fac Fac Ext Cet Arc Hub Combat Hostiles Destroyed 126 | . 16 20 5 . 61 8 13 . 1 2 Guns 50 | . 16 2 1 . 31 . . . . . Cannons 40 | . . 8 4 . 9 3 13 . 1 2 AOE 36 | . . 10 . . 21 5 . . . . Classes Destroyed 21 | 3 7 1 4 . 5 . 1 . . . Worker 13 | 2 5 . . . 4 2 . . . . Builder 7 | . 2 . 2 . 3 . . . . . Tunneler 4 | 3 1 . . . . . . . . . Hauler 1 | . 1 . . . . . . . . . Recycler 26 | 1 2 . 3 . 12 2 6 . . . Mechanic 4 | . . . . . 4 . . . . . Operator 5 | . 1 . . . . . . . 4 . Turret 2 | . . 2 . . . . . . . . Watcher 3 | . 1 . . . . . . . . 2 Swarmer 29 | . 6 9 . . 7 6 1 . . . Cutter 3 | . . . . . 3 . . . . . Saboteur 1 | . . . . . 1 . . . . . Grunt 36 | . 8 . . . 25 . 2 . . 1 Duelist 4 | . . . . . 3 . 1 . . . Protector 3 | . . . 1 . 2 . . . . . Sentry 15 | . . . 2 . 5 2 5 . 1 . Specialist 4 | . . . . . 4 . . . . . Hunter 10 | . . . 1 . 7 . 2 . . . Programmer 6 | . . . 1 . 4 . . . . 1 Behemoth 2 | . . . . . . . 2 . . . Subdweller 13 | . 2 11 . . . . . . . . Best Kill Streak 15 | 4 4 9 4 . 15 4 3 . 3 1 Combat Bots Only 14 | . 3 7 2 . 14 4 2 . 1 1 Max Kills in Single Turn 4 | 1 2 2 1 . 4 4 1 . 1 1 Gunslinging 1 | . 1 . . . 1 . . . . . Exploded 4 | . . 2 . . 3 4 . . . . Melee . | . . . . . . . . . . . Uniques/NPCs Destroyed . | . . . . . . . . . . . Combat | -11 -10 -10 -9 -9 -6 -5 -5 -5 -5 -5 -------- Run | Yrd Mat Sub Rec Scr Fac Fac Ext Cet Arc Hub Hostile Shots Fired 782 | . 99 47 54 . 423 46 42 10 3 58 Missed 286 | . 42 23 21 . 142 13 19 4 1 21 Hits 496 | . 57 24 33 . 281 33 23 6 2 37 Melee 8 | . . . . . 5 . . . . 3 Projectile 488 | . 57 24 33 . 276 33 23 6 2 34 AOE 5 | . 2 . . . 3 . . . . . Critical Strikes 22 | . . . 2 . 8 . . 1 . 11 Damage Taken 8016 | . 705 307 495 . 3829 575 474 94 49 1488 Core 1810 | . 140 53 26 . 583 151 94 13 . 750 Absorbed by Shields 411 | . . . . . 294 . 55 62 . . Regen/Repaired (Parts) 132 | . 116 . . . 16 . . . . . Core Remaining (%) 47 | 100 . . . 12 31 . . . . . Volleys Fired 492 | 14 85 49 38 . 158 32 63 5 23 25 Largest 4 | 2 2 2 2 . 4 2 2 2 2 1 Hottest 153 | 70 70 73 63 . 153 94 94 94 94 47 Shots Fired 1142 | 21 170 77 75 . 557 37 124 10 46 25 Gun 729 | 21 170 21 22 . 482 13 . . . . Cannon 371 | . . 38 53 . 53 22 124 10 46 25 Launcher 42 | . . 18 . . 22 2 . . . . Special . | . . . . . . . . . . . Kinetic 1074 | 14 147 76 75 . 535 22 124 10 46 25 Thermal 30 | 7 23 . . . . . . . . . Explosive 25 | . . 1 . . 22 2 . . . . Electromagnetic 13 | . . . . . . 13 . . . . Robot Hit Streak 16 | 9 15 13 15 . 16 14 9 2 6 11 Robot Miss Streak 6 | 1 6 3 3 . 4 5 4 1 5 2 Penetration Max 1 | . . . . . 1 . 1 . . . Secondary Targets 7 | . 2 . . . 5 . . . . . Max Gunslinging Chain 1 | . 1 . . . 1 . . . . . Shots Hit Robots 717 | 16 100 48 58 . 350 21 81 5 24 14 Core Hits 392 | 7 51 40 14 . 202 15 36 2 14 11 Critical Kills 4 | . . . . . 4 . . . . . Critical Parts Destroyed 6 | . . . . . 6 . . . . . Critical Strikes 44 | 1 1 2 3 . 14 2 15 . 6 . Burn 2 | 1 1 . . . . . . . . . Destroy 10 | . . . . . 10 . . . . . Blast 31 | . . 2 3 . 4 1 15 . 6 . Corrupt 1 | . . . . . . 1 . . . . Melee Attacks . | . . . . . . . . . . . Impact . | . . . . . . . . . . . Slashing . | . . . . . . . . . . . Piercing . | . . . . . . . . . . . Sneak Attacks . | . . . . . . . . . . . Combat Hostiles . | . . . . . . . . . . . Follow-up Attacks . | . . . . . . . . . . . Damage Inflicted 21827 | 207 1209 2255 993 . 11101 1210 2968 198 846 840 Guns 8809 | 207 1209 259 265 . 6682 187 . . . . Cannons 7307 | . . 591 728 . 1110 429 2968 198 846 437 Explosions 5650 | . . 1405 . . 3281 561 . . . 403 Melee . | . . . . . . . . . . . Ramming 61 | . . . . . 28 33 . . . . Kinetic 17082 | 143 1071 2205 993 . 7792 429 2968 198 846 437 Thermal 202 | 64 138 . . . . . . . . . Explosive 3892 | . . 50 . . 3281 561 . . . . Electromagnetic 590 | . . . . . . 187 . . . 403 Impact . | . . . . . . . . . . . Slashing . | . . . . . . . . . . . Piercing . | . . . . . . . . . . . Highest Corruption 13 | . . . . . 13 . . . . 12 Average Corruption 10 | . . . . . 10 . . . . 5 Corruption Purged . | . . . . . . . . . . . Corruption Blocked . | . . . . . . . . . . . Effects 48 | . . . . . 46 . . . . 2 Message Errors 8 | . . . . . 7 . . . . 1 Matter Fused 15 | . . . . . 15 . . . . . Heat Flow Errors 3 | . . . . . 2 . . . . 1 Energy Discharges 7 | . . . . . 7 . . . . . Parts Rejected 1 | . . . . . 1 . . . . . Data Loss (minor) 6 | . . . . . 6 . . . . . Misfires 1 | . . . . . 1 . . . . . Alerts 1 | . . . . . 1 . . . . . Weapon Failures 6 | . . . . . 6 . . . . . Overload Shots . | . . . . . . . . . . . Overflow Damage 324 | . . 27 6 . 86 68 42 . 36 59 Projectiles 118 | . . 11 6 . 23 . 42 . 36 . Explosions 206 | . . 16 . . 63 68 . . . 59 Melee . | . . . . . . . . . . . Knockbacks 53 | . . 5 18 . 11 3 12 . 2 2 Impact 1 | . . . . . 1 . . . . . Kinetic 48 | . . 5 16 . 8 3 12 . 2 2 Secondary 4 | . . . 2 . 2 . . . . . Self-Inflicted Damage 317 | . . 2 . . 91 16 . . . 208 Shots 5 | . . 1 . . 2 . . . . 2 Rammed 6 | . 1 . . . 4 1 . . . . Targets Rammed 7 | . 1 . . . 5 1 . . . . Kicked . | . . . . . . . . . . . Crushed 1 | . . . . . 1 . . . . . Highest Temperature 249 | 36 75 . 39 . 249 41 183 . 21 147 Average Temperature 35 | 17 28 . 13 . 33 15 50 . 10 42 Received Heat Transfer 1262 | . 225 81 69 . 650 45 147 . 9 36 Siege Activations . | . . . . . . . . . . . Martial Activations . | . . . . . . . . . . . Shielding Activations . | . . . . . . . . . . . Robots Disrupted . | . . . . . . . . . . . Combat Hostiles . | . . . . . . . . . . . Robots Corrupted 1 | . . . . . . . . . . 1 Combat Hostiles . | . . . . . . . . . . . Parts Fried 3 | . . . . . . . 1 . . 2 Impact Corruptions . | . . . . . . . . . . . Robots Melted . | . . . . . . . . . . . Combat Hostiles . | . . . . . . . . . . . Parts Melted 1 | . 1 . . . . . . . . . Heat Transferred 740 | 259 481 . . . . . . . . . Parts Sabotaged . | . . . . . . . . . . . Parts Stolen . | . . . . . . . . . . . Parts Stripped . | . . . . . . . . . . . Power Chain Reactions . | . . . . . . . . . . . Alert | -11 -10 -10 -9 -9 -6 -5 -5 -5 -5 -5 ------- Run | Yrd Mat Sub Rec Scr Fac Fac Ext Cet Arc Hub Maximum Alert Level 5 | . . . . . 5 4 4 3 2 5 Low Security (%) 39 | 100 100 . 100 . 31 . . . . 15 Level 1 4 | . . . . . 9 . . . 8 19 Level 2 13 | . . . . . 8 . 43 8 91 14 Level 3 24 | . . . . . 14 91 33 91 . 16 Level 4 14 | . . . . . 29 8 22 . . 6 Level 5 1 | . . . . . . . . . . 28 High Security 2 | . . . . . 7 . . . . . Max Security . | . . . . . . . . . . . Peak Influence 2384 | 15 148 . 95 . 1764 1133 1153 900 531 2384 Initial 1100 | . 6 . 95 . . 1100 548 645 348 181 Average 597 | 2 64 . 33 . 762 1012 813 790 496 962 Influence Increases 8620 | 30 506 255 337 . 2481 403 1350 445 270 2543 Destroy 0b10 Robot/C 3780 | . 280 220 120 . 1560 160 580 160 80 620 Destroy 0b10 Robot/NC 440 | 30 65 . 30 . 160 20 50 10 20 55 Destroy Leader 600 | . 64 20 . . 284 30 72 . . 130 Allied During Kill 1281 | . . . 6 . 126 . 264 168 95 622 Trap Triggered on 0b10 20 | . . . . . 20 . . . . . Successful Hack 127 | . 21 . 25 . 1 4 14 23 . 39 Select Force Hacks 210 | . 60 . 120 . 30 . . . . . Disable Machine 630 | . . . 15 . 135 30 60 . 45 345 Destroy Structure 1262 | . 1 . 6 . 165 84 220 84 30 672 Lose Combat Pursuer 270 | . 15 15 15 . . 75 90 . . 60 Influence Decreases 6527 | 20 474 98 521 15 747 1267 1317 729 622 717 Entered New Map 2970 | . 4 21 104 15 . 885 573 509 522 337 Time Decay 2647 | 20 460 77 317 . 507 342 494 160 80 190 Lost Part 340 | . 10 . 20 . 200 20 . . . 90 Lost Ally 420 | . . . 80 . 40 20 100 60 20 100 Purge Threat 150 | . . . . . . . 150 . . . Squads Dispatched 54 | . 5 . . . 29 5 2 . . 13 Investigation 12 | . 4 . . . 4 2 . . . 2 Extermination 5 | . . . . . 3 2 . . . . Reinforcement 23 | . 1 . . . 11 . 2 . . 9 Assault 11 | . . . . . 8 1 . . . 2 Garrison 3 | . . . . . 3 . . . . . Intercept . | . . . . . . . . . . . Searches Triggered . | . . . . . . . . . . . Construction Impeded 5 | . . . . . 4 . . . . 1 Haulers Reinforced 4 | . . . . . 2 . . . . 2 Active Scanning Responses . | . . . . . . . . . . . Cargo Convoy Interrupts 1 | . . . . . 1 . . . . . Stealth | -11 -10 -10 -9 -9 -6 -5 -5 -5 -5 -5 --------- Run | Yrd Mat Sub Rec Scr Fac Fac Ext Cet Arc Hub Distress Signals 9 | . 3 . 1 . . . 2 2 . 1 Communications Jammed . | . . . . . . . . . . . Distress Signals . | . . . . . . . . . . . Times Spotted 284 | . 27 19 8 . 111 19 33 9 16 42 Peak Tracking Total 27 | . 4 4 5 . 11 8 6 5 1 27 Tactical Retreats 13 | . 1 1 1 . . 2 5 . . 3 Traps | -11 -10 -10 -9 -9 -6 -5 -5 -5 -5 -5 ------- Run | Yrd Mat Sub Rec Scr Fac Fac Ext Cet Arc Hub Traps Triggered 6 | . 3 . . . 1 . 2 . . . Indirectly . | . . . . . . . . . . . Trap Hack Attempts . | . . . . . . . . . . . Triggered . | . . . . . . . . . . . Disarmed . | . . . . . . . . . . . Reprogrammed . | . . . . . . . . . . . Reused 2 | . . . . . 2 . . . . . Traps Extracted . | . . . . . . . . . . . Installed 2 | . . . . . 2 . . . . . Triggered 2 | . . . . . 2 . . . . . Most Traps Carried 2 | . . . . 2 2 . . . . . Machines | -11 -10 -10 -9 -9 -6 -5 -5 -5 -5 -5 ---------- Run | Yrd Mat Sub Rec Scr Fac Fac Ext Cet Arc Hub Machines Disabled 48 | . . 4 1 . 9 2 6 . 3 23 Max in Single Turn 9 | . . 3 1 . 1 1 1 . 1 9 Garrison Access 1 | . . . . . . . . . . 1 Network Hub 2 | . . . . . . . . . . 2 Machines Repaired . | . . . . . . . . . . . Machines Dismantled . | . . . . . . . . . . . Machines Sabotaged . | . . . . . . . . . . . Overloaded Fab Kills . | . . . . . . . . . . . Hacking | -11 -10 -10 -9 -9 -6 -5 -5 -5 -5 -5 --------- Run | Yrd Mat Sub Rec Scr Fac Fac Ext Cet Arc Hub Machines Accessed 55 | . 9 1 7 1 9 6 12 2 . 8 Terminals 33 | . 6 . 3 . 1 2 12 2 . 7 Fabricators 1 | . . . . . 1 . . . . . Repair Stations 3 | . 1 . . . 2 . . . . . Recycling Units 12 | . 2 . 4 . 4 2 . . . . Scanalyzers 3 | . . . . . 1 2 . . . . Garrison Access 1 | . . . . . . . . . . 1 Total Hacks 142 | . 22 3 14 5 14 10 35 6 . 33 Successful 76 | . 13 3 8 5 8 6 15 5 . 13 Failed 66 | . 9 . 6 . 6 4 20 1 . 20 Catastrophic 14 | . 1 . 1 . 3 2 3 . . 4 Database Lockouts . | . . . . . . . . . . . Manual 86 | . 18 . 8 . 5 4 24 1 . 26 Terminals 103 | . 16 . 10 . 1 3 35 6 . 32 Fabricators 2 | . . . . . 2 . . . . . Repair Stations 7 | . 3 . . . 4 . . . . . Recycling Units 14 | . 3 . 4 . 5 2 . . . . Scanalyzers 7 | . . . . . 2 5 . . . . Garrison Access 1 | . . . . . . . . . . 1 Terminal Hacks 41 | . 6 3 3 5 . . 11 5 . 8 Record 12 | . . 3 . 5 . . . 4 . . Part Schematic 2 | . . . 1 . . . 1 . . . Robot Analysis 8 | . 4 . 2 . . . . . . 2 Prototype ID Bank 2 | . 1 . . . . . 1 . . . Open Door 7 | . . . . . . . 6 1 . . Emergency Access Points 1 | . . . . . . . . . . 1 Terminal Index 3 | . 1 . . . . . 1 . . 1 Unreport Threat 1 | . . . . . . . 1 . . . Security Status 1 | . . . . . . . . . . 1 Recall Reinforcements 2 | . . . . . . . 1 . . 1 Zone Layout 2 | . . . . . . . . . . 2 Fabricator Hacks 1 | . . . . . 1 . . . . . Network Status 1 | . . . . . 1 . . . . . Repair Station Hacks 5 | . 2 . . . 3 . . . . . Scan Component 3 | . 1 . . . 2 . . . . . Repair 2 | . 1 . . . 1 . . . . . Recycling Unit Hacks . | . . . . . . . . . . . Scanalyzer 4 | . . . . . . 4 . . . . Insert Component 2 | . . . . . . 2 . . . . Analyze 2 | . . . . . . 2 . . . . Garrison Access Hacks 1 | . . . . . . . . . . 1 Seal Access 1 | . . . . . . . . . . 1 Unauthorized Hacks 24 | . 5 . 5 . 4 2 4 . . 4 Terminals 12 | . 3 . 1 . . . 4 . . 4 Botnet 12 | . 3 . 1 . . . 4 . . 4 Fabricators . | . . . . . . . . . . . Repair Stations . | . . . . . . . . . . . Recycling Units 12 | . 2 . 4 . 4 2 . . . . Tunnel 7 | . 2 . 4 . 1 . . . . . Fedlink 5 | . . . . . 3 2 . . . . Scanalyzers . | . . . . . . . . . . . Garrison Access . | . . . . . . . . . . . Data Cores Recovered 2 | . 1 . . . . . . . . 1 Used . | . . . . . . . . . . . Hacking Detections 34 | . 7 . 3 . 6 4 6 1 . 7 Full Trace Events 3 | . 1 . . . . . . . . 2 Feedback Events . | . . . . . . . . . . . Feedback Blocked . | . . . . . . . . . . . Robot Schematics Acquired . | . . . . . . . . . . . Robots Built . | . . . . . . . . . . . Authchips . | . . . . . . . . . . . Time . | . . . . . . . . . . . Total Robot Build Rating . | . . . . . . . . . . . Part Schematics Acquired 3 | . . . 1 . . 1 1 . . . Parts Built . | . . . . . . . . . . . Authchips . | . . . . . . . . . . . Time . | . . . . . . . . . . . Total Part Build Rating . | . . . . . . . . . . . Parts Repaired 2 | . 1 . . . 1 . . . . . Time 70 | . 26 . . . 44 . . . . . Parts Recycled . | . . . . . . . . . . . Recycled Matter . | . . . . . . . . . . . Retrieved Matter . | . . . . . . . . . . . Retrieved Components . | . . . . . . . . . . . Parts Scanalyzed 1 | . . . . . . 1 . . . . Part Schematics Acquired 1 | . . . . . . 1 . . . . Parts Damaged 1 | . . . . . . 1 . . . . Bothacking | -11 -10 -10 -9 -9 -6 -5 -5 -5 -5 -5 ------------ Run | Yrd Mat Sub Rec Scr Fac Fac Ext Cet Arc Hub Used RIF Installer . | . . . . . . . . . . . Robots Hacked . | . . . . . . . . . . . Non-combat . | . . . . . . . . . . . Combat . | . . . . . . . . . . . Robot Hacks Applied . | . . . . . . . . . . . Relay Couplers Released 3 | . . . . . . . . . . 3 Machine Destruction 3 | . . . . . . . . . . 3 Fabnet Peak Effective % . | . . . . . . . . . . . Robots Rewired 16 | . . . 7 . . 1 8 . . . Allies Hacked . | . . . . . . . . . . . Hacks Repelled . | . . . . . . . . . . . Allies | -11 -10 -10 -9 -9 -6 -5 -5 -5 -5 -5 -------- Run | Yrd Mat Sub Rec Scr Fac Fac Ext Cet Arc Hub Total Allies 32 | . . . 7 1 1 1 17 5 . . Largest Group 14 | . . . 7 1 1 1 11 14 11 9 Highest-Rated Group 927 | . . . 72 80 123 41 532 927 854 674 Highest-Rated Ally 159 | . . . 18 80 123 41 159 146 146 96 Total Orders 26 | . . . . . 7 1 14 . 1 3 STAY 15 | . . . . . 3 1 8 . 1 2 FOLLOW 11 | . . . . . 4 . 6 . . 1 Ally Attacks 373 | . . . 10 . 82 1 94 59 17 110 Total Damage 17307 | . . . 97 . 4377 16 3439 2409 672 6297 Kills 104 | . . . 2 . 26 . 21 11 3 41 Allies Corrupted 2 | . . . . . . . . . . 2 Allies Melted 1 | . . . . . 1 . . . . . Intel | -11 -10 -10 -9 -9 -6 -5 -5 -5 -5 -5 ------- Run | Yrd Mat Sub Rec Scr Fac Fac Ext Cet Arc Hub Active Infowar (turns) 6136 | 25 354 . . 309 2457 774 1318 336 174 389 Optics 2972 | . . . . . 2363 609 . . . . Terrain 555 | 25 354 . . . . 176 . . . . Decoding 5757 | . . . . 309 2457 774 1318 336 174 389 Robot Analysis Total 8 | . 4 . 2 . . . . . . 2 Derelict Logs Recovered 3 | . . 1 . 2 . . . . . . Drone Launches . | . . . . . . . . . . . Drone Recoveries . | . . . . . . . . . . . Decoded 0b10 Intel 223 | . . . . . 108 50 35 . . 30 Items 223 | . . . . . 108 50 35 . . 30 Exploration | -11 -10 -10 -9 -9 -6 -5 -5 -5 -5 -5 ------------- Run | Yrd Mat Sub Rec Scr Fac Fac Ext Cet Arc Hub Turns Passed 12479 | 114 1356 2120 722 2719 2457 774 1318 336 174 389 Spaces Moved 7846 | 45 650 1217 346 1569 1013 778 1299 288 123 518 Core 7 | 2 . . . . 5 . . . . . Treads 4488 | 43 650 1217 346 1436 769 27 . . . . Legs 26 | . . . . . 26 . . . . . Wheels 58 | . . . . . 58 . . . . . Hover 3266 | . . . . 133 154 751 1299 288 123 518 Flight 1 | . . . . . 1 . . . . . Fastest Speed 50 | 50 160 160 160 116 110 52 50 50 50 50 Average Speed 121 | 155 160 160 160 156 160 80 51 50 50 57 Slowest Speed 400 | 160 160 160 160 300 400 160 52 50 50 150 Overloaded Moves . | . . . . . . . . . . . Propulsion Burnouts . | . . . . . . . . . . . Robots Hopped 1 | . . . . . . . . 1 . . Potential Cave-ins . | . . . . . . . . . . . Cave-ins Triggered . | . . . . . . . . . . . Exploration Rate (%) 60 | 4 94 67 75 82 26 23 88 78 76 47 Regions Visited 10 Branch Regions 7 Pre-discovered Areas 9 | . 2 1 4 . 2 . . . . . Known Exits Taken 1 | . . . . . . 1 . . . . Unknown Exits Taken 9 | 1 1 1 1 1 1 . 1 1 1 . Scrap Searched 10 | . . 1 . 9 . . . . . . Spaces Dug 166 | . . . . . 2 4 . . . 160 Terrain Destroyed 823 | . . 245 4 . 140 50 45 2 16 321 Melee . | . . . . . . . . . . . Projectile 110 | . . . 4 . 25 9 45 2 16 9 AOE 712 | . . 245 . . 114 41 . . . 312 Terrain Rammed . | . . . . . . . . . . . Walls Destroyed . | . . . . . . . . . . . Machines Disabled . | . . . . . . . . . . . Actions | -11 -10 -10 -9 -9 -6 -5 -5 -5 -5 -5 --------- Run | Yrd Mat Sub Rec Scr Fac Fac Ext Cet Arc Hub Total 9896 | 65 806 1304 440 1837 1475 890 1831 469 191 588 Wait 930 | . 34 8 8 212 122 13 301 174 32 26 Move 7835 | 44 649 1216 345 1568 1013 777 1298 285 122 518 Hop 1 | . . . . . . . . 1 . . Pick Up 138 | . 16 3 1 22 38 17 30 2 6 3 Fast Attach 55 | 7 5 1 . 1 26 9 4 . . 2 Attach 35 | . . 1 3 2 14 10 1 . . 4 Detach 22 | . 1 . . 2 4 8 2 . . 5 Swap 102 | . 7 22 1 4 47 6 10 . 2 3 Drop 141 | . 8 4 1 26 47 11 34 2 6 2 Fire 492 | 14 85 49 38 . 158 32 63 5 23 25 Melee . | . . . . . . . . . . . Ram 1 | . . . . . . 1 . . . . Kick . | . . . . . . . . . . . Crush 5 | . 1 . . . 4 . . . . . Escape Stasis 26 | . . . . . . . 26 . . . Rewire 111 | . . . 43 . . 6 62 . . . Trap 2 | . . . . . 2 . . . . . Miscellaneous . | . . . . . . . . . . . Route ------- -11/Scrapyard -10/Materials (discovered 4 exits: [*Mat x2] / [*Min] / *Sub) -10/Subcaves (discovered 2 exits: [*Mat] / *Rec) -9/Recycling -9/Scraptown (discovered 2 exits: *Fac x2) -6/Factory (discovered 2 exits: *Fac / Low) -5/Factory (discovered 3 exits: [*Upp] / *Ext x2) -5/Extension (discovered 2 exits: [*Fac] / *Cet) -5/Cetus (discovered 2 exits: [*Fac] / [*Arc]) -5/Archives (discovered 2 exits: *Hub x2) -5/Hub_04(d) (discovered 1 exit: [*Fac]) History --------- Turn | Location | Event 34 | -11/Scrapyard | Discovered new exit (range 16) 115 | -11/Scrapyard | Entered Materials 306 | -10/Materials | Build established: Mutant 578 | -10/Materials | Discovered new exit (range 16) 615 | -10/Materials | Derelicts attacked the area 687 | -10/Materials | Discovered new exit (range 7) 738 | -10/Materials | Core integrity fell below 50% 924 | -10/Materials | Repaired Lgt. Treads 1277 | -10/Materials | Discovered new exit (range 15) 1466 | -10/Materials | Discovered new exit (range 3) 1471 | -10/Materials | Entered Subcaves 1471 | -10/Subcaves | Discovered new exit (range 6) 1472 | -10/Subcaves | Approached by a straggling Scientist 1473 | -10/Subcaves | Shifting Twisted Machinery released Battle Cannon 1551 | -10/Subcaves | Learned 2 Materials zone layouts 1641 | -10/Subcaves | Shifting Twisted Machinery released Mak. Light Armor Plating 1644 | -10/Subcaves | Shifting Twisted Machinery released Sub. Optics 1807 | -10/Subcaves | Visited Clippyterm 1812 | -10/Subcaves | Learned Factory garrison access intel 2738 | -10/Subcaves | Shifting Twisted Machinery released Flamer 2749 | -10/Subcaves | Shifting Twisted Machinery released Scrap Shield 2790 | -10/Subcaves | Learned location of Zion (-7) 2790 | -10/Subcaves | Met a Zionite searching for "candidates" 3567 | -10/Subcaves | Discovered new exit (range 14) 3578 | -10/Subcaves | Destroyed 7 combat bots 3591 | -10/Subcaves | Entered Recycling 3793 | -9/Recycling | Core integrity fell below 20% 4273 | -9/Recycling | Scanned before Scraplab entrance 4279 | -9/Recycling | Lost 4 allies 4297 | -9/Recycling | Entered Scraplab 4310 | -9/Recycling | Discovered new exit (range 2) 4313 | -9/Recycling | Entered Scraptown 4446 | -9/Scraptown | Scanned Subdweller tech in exchange for log data 4453 | -9/Scraptown | Learned 12 Factory zone layouts 4540 | -9/Scraptown | Visited UFD Registry 4540 | -9/Scraptown | Registered with UFD as "Hellplate" 4664 | -9/Scraptown | Delivered Scrap Shield to a Scientist 4745 | -9/Scraptown | Visited Botcube Research 4751 | -9/Scraptown | Found Lrg. Botcube 4781 | -9/Scraptown | Visited Abandonware Association 4802 | -9/Scraptown | Learned abandonware demo "HACKBUD.EXE" 4802 | -9/Scraptown | Learned abandonware demo "MELTYB.EXE" 4842 | -9/Scraptown | Visited Infowarlord's Domain 4891 | -9/Scraptown | Visited DA-N13 Charitable Foundation 4909 | -9/Scraptown | Found DCF Scrap (30 items) 4930 | -9/Scraptown | Visited Science Guys 4996 | -9/Scraptown | Received an X-ray algorithm 4996 | -9/Scraptown | Visited Scrap Suit Storage 5050 | -9/Scraptown | Visited Cartography Club 5108 | -9/Scraptown | Found Scrap Suit 5209 | -9/Scraptown | Visited Observation Area 5249 | -9/Scraptown | Visited Chapter 10 5288 | -9/Scraptown | Visited Symbiants 5710 | -9/Scraptown | Discovered new exit (range 11) 5910 | -9/Scraptown | Visited Bundlers 6376 | -9/Scraptown | Visited Cyclists 6577 | -9/Scraptown | Lrg. Botcube activated 6611 | -9/Scraptown | Lrg. Botcube completed mutation into wheeled form, armed with 3 cannons. 6971 | -9/Scraptown | Met Optimus 6971 | -9/Scraptown | Accepted into 0bPrime 7027 | -9/Scraptown | Discovered new exit (range 3) 7032 | -9/Scraptown | Entered Factory 7032 | -6/Factory | Accompanied by 1 ally 7032 | -6/Factory | Evolved 8 slots: Propulsion x2, Utility x4, Weapon x2 7033 | -6/Factory | Identified exit to Lower Caves 7034 | -6/Factory | Loaded intel: 4 garrison access locations 7203 | -6/Factory | Spotted B-75 Beast 7217 | -6/Factory | Allies destroyed B-75 Beast 7396 | -6/Factory | Loaded intel: 8 recycling unit locations 7418 | -6/Factory | Garrison activated, responded to threat 7574 | -6/Factory | Build established: Gunner 7674 | -6/Factory | Learned location of Protoforge (-2) 8000 | -6/Factory | Repaired Matter Filter 8082 | -6/Factory | First assault squad dispatched 8302 | -6/Factory | Destroyed 14 combat bots 8308 | -6/Factory | Cargo convoy interrupted 8372 | -6/Factory | Found Lrg. Botcube 8431 | -6/Factory | Found Prototype Launcher 8431 | -6/Factory | Identified Hellfire Missile Launcher 8439 | -6/Factory | Found Corrupted Hellfire Missile Launcher 8500 | -6/Factory | Found Spectral Analyzer 8540 | -6/Factory | Found PL-3XN's Ring of Power 8849 | -6/Factory | Build established: Tank 8908 | -6/Factory | System corruption reached 10% 8997 | -6/Factory | Discovered new exit (range 22) 9015 | -6/Factory | Lost 3 parts (1p2n) 9205 | -6/Factory | Lrg. Botcube activated 9237 | -6/Factory | Lrg. Botcube completed mutation into treaded form, armed with 3 cannons, 1 launcher. 9309 | -6/Factory | High security lockdown imminent 9324 | -6/Factory | Found Lrg. Botcube 9330 | -6/Factory | Destroyed 8 combat bots 9389 | -6/Factory | High security lockdown engaged 9389 | -6/Factory | Core integrity fell below 50% 9489 | -6/Factory | Entered another Factory area 9489 | -5/Factory | Evolved 2 slots: Propulsion x1, Utility x1 9490 | -5/Factory | Identified exit to Extension 9499 | -5/Factory | Lost 9 parts (1p3n1u4w) 9733 | -5/Factory | Build established: Scavenger-Mutant 9766 | -5/Factory | Discovered new exit (range 19) 9936 | -5/Factory | Loaded intel: 8 recycling unit locations 10089 | -5/Factory | First assault squad dispatched 10233 | -5/Factory | Discovered exit to Extension (range 16) 10263 | -5/Factory | Entered Extension 10479 | -5/Extension | Build established: Hacker-Mutant 10592 | -5/Extension | Lrg. Botcube activated 10628 | -5/Extension | Lrg. Botcube completed mutation into treaded form, armed with 3 cannons, 1 launcher. 10682 | -5/Extension | Rescued a captive Derelict 10685 | -5/Extension | Rescued a captive Derelict 10738 | -5/Extension | Disrupted transfer network 10799 | -5/Extension | Rescued A7 10820 | -5/Extension | Rescued a captive Derelict 10879 | -5/Extension | Lost 3 allies 11153 | -5/Extension | Spotted B-75 Beast 11163 | -5/Extension | Destroyed B-75 Beast 11180 | -5/Extension | Spotted B-75 Beast 11190 | -5/Extension | Destroyed B-75 Beast 11226 | -5/Extension | Rescued a captive Derelict 11346 | -5/Extension | Rescued a captive Derelict 11348 | -5/Extension | Rescued a captive Derelict 11370 | -5/Extension | Rescued a captive Derelict 11479 | -5/Extension | Discovered new exit (range 10) 11479 | -5/Extension | Discovered new exit (range 6) 11581 | -5/Extension | Disrupted transfer network 11581 | -5/Extension | Entered Cetus 11581 | -5/Cetus | Accompanied by 11 allies (A7) 11586 | -5/Cetus | Acquired a Cetus Manufacturing Module code from A7 11598 | -5/Cetus | Spotted Cetus Guard 11598 | -5/Cetus | Spotted Cetus Guard 11604 | -5/Cetus | Spotted Cetus Guard 11608 | -5/Cetus | Allies destroyed Cetus Guard 11613 | -5/Cetus | Spotted Cetus Guard 11614 | -5/Cetus | Allies destroyed Cetus Guard 11641 | -5/Cetus | Started Cetus Manufacturing Module 11646 | -5/Cetus | Escorted A7 to Cetus Mainframe 11666 | -5/Cetus | Manufactured an Enhanced Grunt 11685 | -5/Cetus | Build established: Commander-Mutant 11691 | -5/Cetus | Manufactured an Enhanced Grunt 11716 | -5/Cetus | Manufactured an Enhanced Grunt 11741 | -5/Cetus | Manufactured an Enhanced Grunt 11766 | -5/Cetus | Manufactured an Enhanced Grunt 11768 | -5/Cetus | Discovered new exit (range 15) 11812 | -5/Cetus | Spotted Cetus Guard 11812 | -5/Cetus | Spotted Cetus Guard 11815 | -5/Cetus | Spotted Cetus Guard 11817 | -5/Cetus | Spotted Cetus Guard 11820 | -5/Cetus | Allies destroyed Cetus Guard 11827 | -5/Cetus | Allies destroyed Cetus Guard 11830 | -5/Cetus | Allies destroyed Cetus Guard 11839 | -5/Cetus | Allies destroyed Cetus Guard 11848 | -5/Cetus | Discovered new exit (range 15) 11853 | -5/Cetus | Met Revision 17 11917 | -5/Cetus | Entered Archives 11917 | -5/Archives | Accompanied by 11 allies (A7) 11922 | -5/Archives | Received a hacking code to weaken MAIN.C 11948 | -5/Archives | Discovered new exit (range 16) 11958 | -5/Archives | Discovered new exit (range 15) 12091 | -5/Archives | Entered Hub_04(d) 12091 | -5/Hub_04(d) | Accompanied by 9 allies 12162 | -5/Hub_04(d) | Discovered new exit (range 8) 12280 | -5/Hub_04(d) | P-70 Sage assimilated allied JS-DUA(b) 12384 | -5/Hub_04(d) | Lost 3 allies 12391 | -5/Hub_04(d) | First assault squad dispatched 12402 | -5/Hub_04(d) | Network Hub disabled 12432 | -5/Hub_04(d) | Spotted Lightning 12434 | -5/Hub_04(d) | Spotted Lightning 12435 | -5/Hub_04(d) | Spotted Lightning 12443 | -5/Hub_04(d) | Core integrity fell below 50% 12455 | -5/Hub_04(d) | Network Hub disabled 12459 | -5/Hub_04(d) | System corruption reached 10% 12473 | -5/Hub_04(d) | Core integrity fell below 20% 12480 | -5/Hub_04(d) | Destroyed by Lightning with EMDS Last Messages --------------- 12456_ Lgt. Angular Momentum Engine destroyed. 12457_ Penetrated by EMDS Slug. 12458_ Penetrated by Slug. 12460_ Penetrated by EMDS Slug. 12463_ EMDS Slug penetrates Earth. 12465_ ALERT: Suspicious intruders detected, dispatching Cutter reinforcements to area. 12466_ >> DECODED: Prototype Energy Gun location. 12466_ EMDS Slug penetrates Wall. 12472_ EMDS Slug penetrates Archive Unit. 12472_ Archive Unit disabled. 12473_ EMDS Slug penetrates Wall. 12473_ Penetrated by EMDS Slug. 12473_ Control Node disabled. 12474_ IB9O FDIG%<7/NONHLJ4 ,X VEXERJ 12475_ Gyrokinetic Inverter severed. 12476_ >> DECODED: Carbon-fiber Leg location. 12476_ Imp. Hacking Suite destroyed. 12476_ Dropped Lrg. Storage Unit. 12479_ Penetrated by EMDS Slug. Map ----- +----------------------------------------------------+ | | | | | | | | | | | | | | | | | | | | | | | | | | | | | | | | | | | | | | | | | ?????????????????#############??????#????????????? | | ?????????????????# ! ####### ###?????????? | | ?????????????????# " ## #?????????? | | ??####?########### "! ""T"" ## " """ #?????????? | | ??# #?# hh h [c!c""""" ## " "T" #?????????? | | ###""### """" #&=!e]c @ ## " " ######+#### | | ## + """" ###==;######## + | | !# # """ ###] ??????# !! " # | | # # """ " H ##?????# ! " # ### | | " / ### #??????# + #?? | | " "#### #?# ## #???# ! # #?? | | # " #?# # # ##########%#### = #?? | | " " ###"#"""""## % % # = | | "" " # !] # ######## #### | | """"" !%===! !=% + ####?????#??? | | = / !%!*%=!% " #????????? | | """"""""""######### ==! !*]"" # #???# #??? | | " ???????# %% ! G =*[ #???# #??? | | " #??????# % " ![ # #???# #??# | | " #??????# " !!!" # [# #???# #??# | | " "#??????? [ =%* # #???# #??# | | " "????????[" #### # # #???# #??# | | "?????????? " %###???## #???# #??# | | "?????????? # ?!????# % ## #???# #??# | | #?????????? + % ??????# % #???# #??# | | #?????????? # ??????# ##???# #??# | | #?????????? ###+#??????## ##????# #??# | | """""""?????????????????????????#" # #????# #??# | | " "???????????????????????????#" ###????# #??# | | " ### ????????????????????????## "##????# #### | +----------------------------------------------------+ Best States ------------- Heat Dissipation 67 Energy Generation 19 Energy Capacity 315 Matter Stores 300 Matter Capacity 300 Sight Range 22 Terrain Scan Range 20 Terrain Scan Density 10 Armor Coverage 225 Resistance: EM 15 Weapon Cycling 15 Evasion (%) 55 Targeting Accuracy 5 Target Analysis 9 Core Analysis 6 Armor Integrity Analysis 30 Recoil Reduction 8 Matter Filtering 30 Offensive Hacking 34 Defensive Hacking 26 Item Schematics ----------------- Hacking Suite | -9/Recycling | Hacked Lgt. Antimatter Cannon | -5/Factory | Scanalyzed Gyrokinetic Inverter | -5/Extension | Hacked Robot Schematics ------------------ None Fabricated ------------ Nothing Repaired ---------- Lgt. Treads | 17% | -10/Materials Matter Filter | 60% | -6/Factory Alien Tech Used ----------------- None Achievements -------------- None Challenges ------------ None Game ------ Seed EncryptedSuspensionBattery Manual? 0 Play Time 02:10:13 Cumulative 296.3 hours Start 2025.06.11 @ 01:18:51 End 2025.06.11 @ 03:29:54 Sessions 1 Manual Loads 0 Difficulty Rogue Special Mode None Game No. 177 Rogue 177 Adventurer 0 Explorer 0 Win Type - Total 3 Types 1/0/1/1/0/0/0/0/0/0 Lore% 82 Gallery% 69 Achievement% 64 Wizard Run 0 Options --------- Layout 2 ASCII 0 Keyboard 1 Movement Vi Keybinds 0 Fullscreen 1 Font 16/Tamsyn Map View 55x47 Zoom Use 0% Tactical HUD 1 Map Filters NONE Filters NONE Steam 0 RUN: 09cf81ab-4924-46a9-9e3f-db0da0449195